bitfinex/quotes_ETHUSD_20250414
["timestamp","ask_amount","ask_price","bid_price","bid_amount"]
[1744620028564,0.1548892,1637.6,1637.5,15.91114135]
[1744620030296,0.1548892,1637.6,1637.5,16.46114135]
[1744620031208,0.1548892,1637.6,1637.5,17.22054135]
[1744620035595,0.1548892,1637.6,1637.5,16.46114135]
[1744620036134,0.1548892,1637.6,1637.5,13.46114135]
[1744620036483,0.1548892,1637.6,1637.5,16.46114135]
[1744620038133,0.1548892,1637.6,1637.5,17.27184135]
[1744620038842,0.11358374,1638.2,1638.1,4.8837]
[1744620039133,0.11358374,1638.2,1638.1,9.05304808]
[1744620039430,0.38560334,1638.2,1638.1,4.16934808]
[1744620039579,0.11358374,1638.2,1638.1,4.16934808]
[1744620039779,0.38672068,1638.2,1638.1,1.055148]
[1744620040035,1.16712068,1638.2,1637.9,3.11420008]
[1744620040180,1.16712068,1638.2,1638.0,9.82877953]
[1744620040393,1.16712068,1638.2,1638.1,4.8837]
[1744620040731,1.16712068,1638.2,1638.0,4.88385]
[1744620040899,1.16712068,1638.2,1637.9,7.99849008]
[1744620041102,1.16712068,1638.2,1638.0,0.79984901]
[1744620041488,1.16712068,1638.2,1638.0,5.74489085]
[1744620041691,1.16712068,1638.2,1638.0,5.74474085]
[1744620041918,1.16712068,1638.2,1638.0,0.79984901]
[1744620042885,6.05066068,1638.2,1637.8,11.11259]
[1744620043311,6.05066068,1638.2,1637.9,4.8843]
[1744620043517,1.16712068,1638.2,1637.9,4.8843]
[1744620044787,1.16712068,1638.2,1637.8,11.11242]
[1744620045137,6.05054068,1638.2,1637.8,11.11242]
[1744620045436,7.14390575,1638.2,1637.8,4.88442]
[1744620045783,4.88372,1638.1,1637.8,4.88442]
[1744620046019,5.66301,1638.1,1637.8,4.88442]
[1744620046317,0.27339953,1638.0,1637.8,4.94547021]
[1744620046507,0.27339953,1638.0,1637.9,4.8843]
[1744620046703,0.27339953,1638.0,1637.8,4.94547021]
[1744620046907,0.27339953,1638.0,1637.8,5.75143724]
[1744620047105,0.27339953,1638.0,1637.8,5.75142724]
[1744620047399,0.27339953,1638.0,1637.9,4.8843]
[1744620048836,0.27339953,1638.0,1637.8,10.57480703]
[1744620049332,0.27339953,1638.0,1637.8,10.63585507]
[1744620049632,0.27339953,1638.0,1637.8,10.57480703]
[1744620050607,0.27339953,1638.0,1637.9,4.8843]
[1744620052288,0.27339953,1638.0,1637.8,5.69037703]
[1744620053935,0.27339953,1638.0,1637.8,10.57481703]
[1744620054947,0.27339953,1638.0,1637.8,5.69037703]
[1744620055102,5.15757953,1638.0,1637.6,4.88508]
[1744620055312,4.88465,1637.8,1637.4,4.88572]
[1744620055495,5.66702,1637.7,1637.3,4.88594]
[1744620055740,0.7819,1637.6,1637.3,1.28865001]
[1744620055902,5.93503022,1637.6,1637.2,4.88636]
[1744620056101,0.7983,1637.4,1637.2,4.88636]
[1744620056419,0.7983,1637.4,1637.2,4.88609]
[1744620056734,0.26604763,1637.3,1637.2,4.88609]
[1744620056919,0.7983,1637.4,1637.2,4.88609]
[1744620057118,0.26604763,1637.3,1637.2,4.88609]
[1744620057447,0.7983,1637.4,1637.2,4.88609]
[1744620057599,0.26604763,1637.3,1637.2,4.88609]
[1744620058013,0.7983,1637.4,1637.2,4.88609]
[1744620058306,0.26604763,1637.3,1637.2,4.88609]
[1744620058505,4.88621,1637.3,1636.9,6.21829464]
[1744620058720,4.88621,1637.3,1637.0,3.11420008]
[1744620058721,0.26604763,1637.3,1637.0,3.11420008]
[1744620058909,5.67073,1637.4,1637.1,4.88654]
[1744620059111,0.26301179,1637.2,1637.0,4.88695]
[1744620059310,0.7578,1637.3,1637.0,4.88695]
[1744620059511,0.26244406,1637.1,1636.9,6.30924447]
[1744620059831,5.64407,1637.3,1636.9,6.30924447]
[1744620060138,0.7578,1637.3,1637.0,4.88682]
[1744620060302,0.26127348,1637.2,1637.0,4.88682]
[1744620061122,0.26127348,1637.2,1637.0,9.83476007]
[1744620061323,0.26127348,1637.2,1637.0,10.96043652]
[1744620061634,0.26127348,1637.2,1637.0,6.01249645]
[1744620062735,0.26127348,1637.2,1637.0,10.89935645]
[1744620062940,0.26127348,1637.2,1637.0,6.01249645]
[1744620063104,0.26127348,1637.2,1637.0,4.88682]
[1744620063305,0.26127348,1637.2,1637.0,4.88697]
[1744620063519,0.26127348,1637.2,1637.0,9.77384]
[1744620063725,0.26127348,1637.2,1637.0,4.88687]
[1744620065555,0.26127348,1637.2,1637.1,5.74886194]
[1744620065859,0.7796,1637.5,1637.3,4.88583]
[1744620066009,0.7796,1637.5,1637.3,4.94689908]
[1744620066204,0.7796,1637.5,1637.3,4.88583]
[1744620066399,0.7692,1637.6,1637.4,4.88579]
[1744620066605,0.7692,1637.6,1637.4,9.77158]
[1744620066805,0.7692,1637.6,1637.4,4.88579]
[1744620067607,0.7692,1637.6,1637.4,4.88566]
[1744620067949,0.8224,1637.7,1637.6,4.88519]
[1744620068103,0.8269,1637.9,1637.8,4.8846]
[1744620068315,0.8269,1637.9,1637.7,4.88489]
[1744620068519,0.22139994,1637.8,1637.7,4.88489]
[1744620069080,0.22139994,1637.8,1637.7,4.94594291]
[1744620069210,0.22139994,1637.8,1637.7,7.02067221]
[1744620069413,0.8293,1638.1,1637.8,4.88444]
[1744620070258,0.8293,1638.1,1637.9,4.8843]
[1744620070557,0.92828374,1638.2,1638.0,4.884]
[1744620070749,0.92828374,1638.2,1637.9,4.88418]
[1744620070904,0.92828374,1638.2,1637.9,9.76831]
[1744620071106,0.92828374,1638.2,1638.0,9.76779]
[1744620071306,0.92828374,1638.2,1638.0,4.88383]
[1744620071709,0.92828374,1638.2,1637.9,4.88428]
[1744620071929,0.92828374,1638.2,1638.0,4.88396]
[1744620072128,0.11358374,1638.2,1638.1,4.8837]
[1744620072408,0.11358374,1638.2,1637.9,9.76833]
[1744620072608,0.11358374,1638.2,1637.9,11.10151422]
[1744620072831,0.11358374,1638.2,1637.9,1.33318422]
[1744620073018,4.99711374,1638.2,1637.8,4.88443]
[1744620073212,0.8287,1638.0,1637.7,4.88486]
[1744620073444,5.71282,1638.0,1637.6,4.88517]
[1744620073631,0.8287,1638.0,1637.7,4.88478]
[1744620074315,6.772364,1638.0,1637.6,4.88509]
[1744620074514,0.7963,1637.8,1637.6,4.88506]
[1744620075940,0.7963,1637.8,1637.6,9.7701]
[1744620076244,0.8316,1638.0,1637.7,4.8846]
[1744620076433,0.8316,1638.0,1637.8,4.88458]
[1744620076662,0.87428374,1638.2,1637.9,4.88411]
[1744620076832,0.87428374,1638.2,1637.8,4.88456]
[1744620077040,10.64143374,1638.2,1637.8,4.88456]
[1744620077240,0.7749,1637.9,1637.7,4.88488]
[1744620077445,5.6592,1637.9,1637.6,4.88505]
[1744620077640,10.54373,1637.9,1637.5,4.88533]
[1744620077963,0.7749,1637.9,1637.6,4.88518]
[1744620078163,0.7749,1637.9,1637.7,4.88477]
[1744620078337,0.7749,1637.9,1637.6,4.88505]
[1744620078530,5.65921,1637.9,1637.6,4.88505]
[1744620078867,0.7749,1637.9,1637.6,4.88505]
[1744620079063,0.7749,1637.9,1637.5,1.39492514]
[1744620079064,0.7749,1637.9,1637.7,4.88472]
[1744620079576,5.65922,1637.9,1637.6,4.88519]
[1744620079778,5.65922,1637.9,1637.5,6.21934456]
[1744620080074,0.7749,1637.9,1637.6,9.77016]
[1744620080243,0.7749,1637.9,1637.7,4.94575964]
[1744620080448,0.7749,1637.9,1637.7,9.76945]
[1744620080849,0.7749,1637.9,1637.7,4.8847]
[1744620082381,0.7749,1637.9,1637.6,4.88516]
[1744620082969,0.7749,1637.9,1637.6,9.7702]
[1744620083171,0.7749,1637.9,1637.7,4.88484]
[1744620083564,0.20691346,1637.8,1637.7,4.88484]
[1744620084510,0.20691346,1637.8,1637.5,4.88547]
[1744620084662,0.20691346,1637.8,1637.5,0.06106287]
[1744620084993,0.20691346,1637.8,1637.6,4.88498]
[1744620085502,0.20691346,1637.8,1637.7,4.88489]
[1744620087651,0.20691346,1637.8,1637.6,5.86813229]
[1744620088788,0.20691346,1637.8,1637.6,10.75319229]
[1744620089087,0.20691346,1637.8,1637.6,5.86813229]
[1744620089247,0.20691346,1637.8,1637.6,0.98315229]
[1744620089443,0.20691346,1637.8,1637.5,9.77084]
[1744620089687,0.20691346,1637.8,1637.6,4.88514]
[1744620090189,5.09152346,1637.8,1637.5,4.88536]
[1744620091163,0.20691346,1637.8,1637.5,4.88536]
[1744620091372,0.20691346,1637.8,1637.6,4.88506]
[1744620091766,0.20691346,1637.8,1637.5,4.88536]
[1744620091998,0.20691346,1637.8,1637.5,6.16247]
[1744620092183,0.20691346,1637.8,1637.5,11.04786]
[1744620092611,0.20691346,1637.8,1637.6,4.88513]
[1744620092923,0.20691346,1637.8,1637.7,4.88489]
[1744620094877,6.223,1638.0,1637.8,4.88457]
[1744620095076,6.223,1638.0,1637.8,5.861516]
[1744620096015,6.223,1638.0,1637.6,0.7587]
[1744620096016,4.8843,1637.9,1637.6,4.88518]
[1744620096309,0.8085,1637.8,1637.6,4.88519]
[1744620096666,5.69323,1637.8,1637.5,1.27711]
[1744620097018,5.69323,1637.8,1637.4,4.88568]
[1744620097603,10.57802,1637.8,1637.4,4.88568]
[1744620097803,5.69323,1637.8,1637.4,9.83241621]
[1744620098299,5.69323,1637.8,1637.5,4.88537]
[1744620098697,0.20502979,1637.7,1637.5,4.88537]
[1744620098901,0.20502979,1637.7,1637.5,5.862474]
[1744620099918,0.20502979,1637.7,1637.5,0.977104]
[1744620100083,0.20502979,1637.7,1637.4,4.88567]
[1744620100285,5.08992979,1637.7,1637.4,4.88567]
[1744620100485,9.76997,1637.7,1637.3,11.11206]
[1744620100709,0.7907,1637.6,1637.3,4.88606]
[1744620100902,0.9951624,1637.6,1637.3,4.88606]
[1744620101110,5.8804624,1637.6,1637.3,0.977242]
[1744620101303,4.88577,1637.5,1637.2,4.88638]
[1744620101501,12.1043924,1637.6,1637.2,4.88638]
[1744620101706,0.20187939,1637.4,1637.2,4.88629]
[1744620101916,11.89993,1637.6,1637.3,0.488629]
[1744620102225,11.89993,1637.6,1637.2,4.88622]
[1744620102415,11.89993,1637.6,1637.2,9.77248]
[1744620103126,11.89993,1637.6,1637.3,4.88603]
[1744620103327,7.0147,1637.6,1637.4,4.88551]
[1744620104487,7.0147,1637.6,1637.3,9.7721]
[1744620104688,7.0147,1637.6,1637.4,0.97721]
[1744620105087,7.0147,1637.6,1637.4,5.86298]
[1744620106024,7.0147,1637.6,1637.4,0.97721]
[1744620106220,11.9,1637.6,1637.2,9.77258]
[1744620106423,11.9,1637.6,1637.3,4.88608]
[1744620106625,7.0147,1637.6,1637.3,4.88608]
[1744620107427,16.78535,1637.6,1637.2,4.88622]
[1744620107733,4.88551,1637.5,1637.2,4.88622]
[1744620107959,4.88551,1637.5,1637.2,6.244966]
[1744620109113,9.77118,1637.5,1637.2,1.358746]
[1744620109318,5.6607,1637.4,1637.1,4.88664]
[1744620109712,10.54668,1637.4,1637.0,4.88694]
[1744620109913,5.6607,1637.4,1637.0,4.88694]
[1744620110133,0.7749,1637.4,1637.1,4.88651]
[1744620110344,0.7749,1637.4,1637.2,4.88638]
[1744620110526,0.7513,1637.5,1637.3,4.88609]
[1744620110725,0.7513,1637.5,1637.4,4.88579]
[1744620111056,0.7513,1637.5,1637.3,9.77207]
[1744620111203,0.7513,1637.5,1637.3,10.827707]
[1744620111544,0.7513,1637.5,1637.3,5.941617]
[1744620111742,0.7513,1637.5,1637.3,10.827567]
[1744620112242,6.224,1637.6,1637.4,4.88579]
[1744620112406,6.224,1637.6,1637.5,4.88549]
[1744620112807,6.224,1637.6,1637.4,4.88579]
[1744620113117,6.224,1637.6,1637.5,4.88549]
[1744620113313,6.224,1637.6,1637.4,4.88566]
[1744620113517,0.7569,1638.0,1637.7,4.88489]
[1744620113811,0.7569,1638.0,1637.8,4.88449]
[1744620115833,0.7569,1638.0,1637.7,4.88488]
[1744620117564,0.7569,1638.0,1637.8,4.88458]
[1744620117864,0.7569,1638.0,1637.9,0.488458]
[1744620118068,0.7569,1638.0,1637.7,4.88487]
[1744620118233,0.7569,1638.0,1637.7,4.88474]
[1744620118736,0.7569,1638.0,1637.7,9.76948]
[1744620118964,0.7569,1638.0,1637.7,4.88474]
[1744620119127,10.5252,1638.0,1637.6,4.88515]
[1744620119329,10.5252,1638.0,1637.6,5.50223396]
[1744620119527,10.5252,1638.0,1637.4,4.88574]
[1744620119528,5.69584,1637.8,1637.4,4.88574]
[1744620119727,0.811,1637.8,1637.5,4.88529]
[1744620119925,7.99800008,1638.1,1637.3,6.1691215]
[1744620120160,0.7703,1638.0,1637.7,4.88464]
[1744620120338,5.65437,1638.0,1637.7,4.88464]
[1744620120652,0.7703,1637.9,1637.4,0.8327]
[1744620120844,0.7703,1637.9,1637.6,4.88516]
[1744620121218,0.88428374,1638.2,1638.0,4.88384]
[1744620121422,0.88428374,1638.2,1637.9,4.88419]
[1744620122382,0.11358374,1638.2,1638.0,4.8838]
[1744620122672,0.11358374,1638.2,1638.1,5.37208]
[1744620122877,0.11358374,1638.2,1637.7,0.55]
[1744620122878,0.93488374,1638.2,1637.9,4.88428]
[1744620123045,10.70207374,1638.2,1637.8,4.88452]
[1744620123382,0.93488374,1638.2,1637.8,3.17524912]
[1744620123579,0.93488374,1638.2,1638.0,4.88396]
[1744620123783,0.93488374,1638.2,1637.9,4.88426]
[1744620123938,5.81837374,1638.2,1637.8,4.88458]
[1744620124134,5.81837374,1638.2,1637.8,5.449698]
[1744620124342,5.81837374,1638.2,1637.8,5.449558]
[1744620124538,5.81837374,1638.2,1637.8,5.449538]
[1744620125269,0.93488374,1638.2,1637.9,4.88426]
[1744620125452,0.11358374,1638.2,1638.0,4.88387]
[1744620126737,0.11358374,1638.2,1637.9,9.76829]
[1744620126943,0.11358374,1638.2,1637.9,10.8077357]
[1744620127678,0.11358374,1638.2,1637.9,5.9235857]
[1744620128178,0.11358374,1638.2,1638.0,4.88397]
[1744620128677,0.14701747,1638.1,1638.0,4.88397]
[1744620128981,0.11358374,1638.2,1638.0,4.88397]
[1744620129144,0.14701747,1638.1,1638.0,4.88397]
[1744620129475,0.11358374,1638.2,1638.0,4.88397]
[1744620129675,0.14701747,1638.1,1638.0,4.88397]
[1744620129980,0.11358374,1638.2,1638.0,4.88397]
[1744620130273,0.14701747,1638.1,1637.9,5.9235857]
[1744620130573,4.99699374,1638.2,1637.9,5.9235857]
[1744620130879,0.14701747,1638.1,1637.9,5.9235857]
[1744620131279,4.99699374,1638.2,1637.9,5.9235857]
[1744620131483,0.14645035,1638.0,1637.9,4.88414]
[1744620131658,4.99699374,1638.2,1637.9,4.88414]
[1744620131863,0.14701747,1638.1,1637.9,4.88414]
[1744620132052,0.7547,1638.0,1637.8,4.88457]
[1744620132383,0.14588317,1637.9,1637.8,4.88457]
[1744620132878,0.14588317,1637.9,1637.7,5.65146]
[1744620133065,0.14588317,1637.9,1637.7,4.88487]
[1744620133269,0.14588317,1637.9,1637.8,4.8846]
[1744620133470,0.14588317,1637.9,1637.8,5.6883]
[1744620133845,6.219,1638.1,1637.9,4.884]
[1744620134060,0.13373926,1638.0,1637.9,4.884]
[1744620134260,0.13373926,1638.0,1637.8,5.68826]
[1744620134500,0.13373926,1638.0,1637.8,11.630001]
[1744620134853,0.13373926,1638.0,1637.8,10.826301]
[1744620135049,0.13373926,1638.0,1637.9,4.8843]
[1744620135655,0.11358374,1638.2,1638.1,4.8837]
[1744620135866,0.24845716,1638.2,1638.1,4.8837]
[1744620136063,0.11358374,1638.2,1638.1,5.860457]
[1744620136268,0.24845716,1638.2,1638.1,6.685857]
[1744620136468,0.11358374,1638.2,1638.1,6.685857]
[1744620136669,0.23993034,1638.2,1638.1,6.685857]
[1744620136991,0.23993034,1638.2,1638.1,0.976757]
[1744620137192,1.01153034,1638.2,1638.0,4.88387]
[1744620141384,5.89505034,1638.2,1637.9,4.88426]
[1744620141584,1.01153034,1638.2,1637.9,9.7684]
[1744620141788,0.23993034,1638.2,1638.0,4.88399]
[1744620141987,0.23993034,1638.2,1638.1,4.8837]
[1744620142568,0.18993034,1638.2,1638.1,4.8837]
[1744620142969,0.06358374,1638.2,1638.1,4.8837]
[1744620143269,0.06358374,1638.2,1638.0,6.16217368]
[1744620143270,0.99860008,1638.2,1638.0,5.37837368]
[1744620143467,0.99860008,1638.2,1638.0,4.88387]
[1744620144089,0.99860008,1638.2,1638.0,9.76771]
[1744620144994,0.99860008,1638.2,1638.0,4.88384]
[1744620145763,0.99860008,1638.2,1638.0,9.76768]
[1744620146395,0.99860008,1638.2,1638.1,4.8837]
[1744620146596,0.19110008,1638.2,1638.1,4.8837]
[1744620148966,0.19110008,1638.2,1638.0,4.88384]
[1744620149165,0.19110008,1638.2,1638.0,5.72626155]
[1744620149366,0.19110008,1638.2,1638.0,10.61014155]
[1744620150400,0.19110008,1638.2,1638.1,4.8837]
[1744620154497,0.19110008,1638.2,1638.1,4.94473986]
[1744620154687,0.19110008,1638.2,1638.1,4.8837]
[1744620154888,0.19110008,1638.2,1638.1,7.23098316]
[1744620158063,0.19110008,1638.2,1638.1,7.29202145]
[1744620160712,0.19110008,1638.2,1638.1,7.23098316]
[1744620161285,0.19110008,1638.2,1638.1,4.8837]
[1744620161807,0.19110008,1638.2,1638.0,4.88384]
[1744620162010,0.19110008,1638.2,1638.0,9.76773]
[1744620162178,0.19110008,1638.2,1638.1,4.8837]
[1744620165414,0.8203,1638.1,1637.7,4.88478]
[1744620165594,0.8203,1638.1,1637.6,0.7585]
[1744620165595,5.00752128,1638.0,1637.6,4.8851]
[1744620165782,0.8203,1637.9,1637.6,4.8851]
[1744620165986,0.12299537,1637.8,1637.6,9.77012]
[1744620166178,0.12299537,1637.8,1637.7,4.88489]
[1744620167026,0.8066,1638.0,1637.8,4.88443]
[1744620167319,0.12356262,1637.9,1637.8,4.88443]
[1744620167518,0.12356262,1637.9,1637.7,4.88489]
[1744620168127,0.12356262,1637.9,1637.6,4.88515]
[1744620168732,0.12356262,1637.9,1637.6,9.77019]
[1744620169180,0.12356262,1637.9,1637.6,4.88504]
[1744620169385,0.12356262,1637.9,1637.6,4.88502]
[1744620169599,0.12356262,1637.9,1637.7,5.373292]
[1744620169829,0.12356262,1637.9,1637.7,10.258082]
[1744620170537,0.12356262,1637.9,1637.7,5.373292]
[1744620171024,0.12356262,1637.9,1637.8,4.8846]
[1744620171199,0.12356262,1637.9,1637.8,5.7038]
[1744620171401,6.214,1638.1,1637.9,4.88423]
[1744620171600,0.1241298,1638.0,1637.9,4.88423]
[1744620172488,0.06358374,1638.2,1638.0,4.88378]
[1744620172824,0.17275513,1638.1,1638.0,4.88378]
[1744620173027,0.06358374,1638.2,1638.0,4.88378]
[1744620173226,0.17114099,1638.1,1638.0,9.76763]
[1744620173432,0.06358374,1638.2,1638.0,10.744393]
[1744620173601,0.17114099,1638.1,1638.0,5.860543]
[1744620173928,0.06358374,1638.2,1638.0,9.76766]
[1744620174129,0.17114099,1638.1,1638.0,4.88378]
[1744620174534,0.06358374,1638.2,1638.0,4.88378]
[1744620174742,0.17114099,1638.1,1637.9,4.88429]
[1744620175042,5.68843,1638.1,1637.7,9.76961]
[1744620175240,5.85957099,1638.1,1637.7,4.88473]
[1744620175555,5.85957099,1638.1,1637.8,4.8845]
[1744620175831,6.94022946,1638.1,1637.8,4.8845]
[1744620177133,11.82409946,1638.1,1637.7,4.88473]
[1744620177341,5.69482,1638.0,1637.6,9.77018]
[1744620178133,5.69482,1638.0,1637.7,4.88485]
[1744620179744,0.8106,1638.0,1637.7,9.76959]
[1744620180940,0.8106,1638.0,1637.7,4.88474]
[1744620181107,0.8106,1638.0,1637.7,9.76951]
[1744620181407,0.8106,1638.0,1637.7,4.88474]
[1744620182017,0.8106,1638.0,1637.7,9.76949]
[1744620182519,0.8106,1638.0,1637.7,4.88474]
[1744620182745,5.69461,1638.0,1637.7,4.88474]
[1744620184374,6.752596,1638.0,1637.5,4.88547]
[1744620184653,0.7974,1637.7,1637.4,4.88578]
[1744620184851,0.7974,1637.7,1637.2,8.19625316]
[1744620185164,0.7974,1637.7,1637.4,4.88574]
[1744620185165,5.68234,1637.7,1637.4,4.88574]
[1744620185650,0.7974,1637.7,1637.4,4.88574]
[1744620186530,5.68237,1637.7,1637.3,9.77201]
[1744620186734,5.68237,1637.7,1637.3,6.19414332]
[1744620187259,4.88522,1637.6,1637.3,4.88594]
[1744620187429,5.68237,1637.7,1637.3,9.77187]
[1744620188857,10.56751,1637.7,1637.3,4.88593]
[1744620189162,0.7709,1637.5,1637.2,12.27002316]
[1744620189363,0.7709,1637.5,1637.2,13.11235874]
[1744620190235,0.7709,1637.5,1637.2,8.22601874]
[1744620190440,5.65641,1637.5,1637.2,8.22601874]
[1744620190664,5.65641,1637.5,1637.2,7.38368316]
[1744620190872,5.65641,1637.5,1637.2,2.49742316]
[1744620191363,4.88586,1637.4,1637.2,2.49742316]
[1744620191744,0.7926,1637.3,1637.2,2.49742316]
[1744620194370,6.212,1637.6,1637.2,2.49742316]
[1744620194553,0.7968,1637.7,1637.4,4.88579]
[1744620194759,4.88531,1637.6,1637.2,7.38375316]
[1744620194957,0.7968,1637.5,1637.2,7.38365316]
[1744620195140,0.7968,1637.2,1636.9,4.88716]
[1744620195466,0.7968,1637.2,1637.0,4.88682]
[1744620195766,5.67449,1637.4,1637.1,4.88668]
[1744620196366,0.7887,1637.4,1637.1,4.88668]
[1744620196669,0.7887,1637.4,1637.1,9.7732]
[1744620196882,0.7887,1637.4,1637.2,4.88637]
[1744620197069,4.88491,1637.7,1637.2,5.863499]
[1744620197280,0.7653,1637.6,1637.3,4.88594]
[1744620198063,0.7653,1637.6,1637.3,9.77192]
[1744620198383,0.7653,1637.6,1637.2,0.7763]
[1744620198686,6.213,1637.7,1637.4,4.88568]
[1744620198870,11.09794,1637.7,1637.4,4.88568]
[1744620199284,11.09794,1637.7,1637.3,4.88606]
[1744620199446,0.8116,1637.6,1637.3,4.88606]
[1744620199645,0.8116,1637.6,1637.3,4.88596]
[1744620199848,5.69686,1637.6,1637.3,4.88596]
[1744620200179,4.88556,1637.5,1637.1,4.88667]
[1744620200343,4.88556,1637.5,1637.1,5.946984]
[1744620200544,4.88556,1637.5,1637.2,4.88638]
[1744620201491,4.88556,1637.5,1637.1,5.946904]
[1744620201784,9.77124,1637.5,1637.1,5.946904]
[1744620201989,5.66389,1637.4,1637.0,5.71644]
[1744620202193,5.66389,1637.4,1637.0,4.88694]
[1744620202489,4.88612,1637.3,1637.0,4.88694]
[1744620203049,10.54997,1637.4,1637.0,4.88694]
[1744620203346,11.604967,1637.4,1637.0,4.88694]
[1744620204188,4.8861,1637.3,1637.0,4.88694]
[1744620204347,4.8861,1637.3,1636.9,4.88726]
[1744620204348,9.77237,1637.3,1636.9,4.88726]
[1744620204557,5.6884,1637.2,1636.8,10.5746]
[1744620205744,11.63241,1637.2,1636.8,5.68702]
[1744620205947,6.74585,1637.2,1636.8,9.77484]
[1744620206470,4.88686,1637.1,1636.8,4.88758]
[1744620206677,6.74585,1637.2,1636.8,4.88758]
[1744620207051,6.74585,1637.2,1636.9,4.88724]
[1744620207250,6.213,1637.3,1637.0,4.88673]
[1744620207490,6.213,1637.3,1637.0,9.77357]
[1744620207491,7.0026,1637.3,1637.0,9.77357]
[1744620207992,6.214,1637.6,1637.4,4.88579]
[1744620208292,6.214,1637.6,1637.3,4.88587]
[1744620209401,11.09921,1637.6,1637.2,5.71056]
[1744620209696,0.8066,1637.5,1637.2,4.88636]
[1744620209898,0.7566,1637.5,1637.2,4.88636]
[1744620210102,5.64219,1637.5,1637.2,4.88636]
[1744620210302,0.7566,1637.5,1637.2,4.88636]
[1744620210889,5.6421,1637.5,1637.2,4.88636]
[1744620211082,0.7566,1637.5,1637.2,9.77265]
[1744620211281,6.214,1637.6,1637.3,4.88597]
[1744620211469,11.09923,1637.6,1637.3,4.88597]
[1744620211671,6.214,1637.6,1637.3,4.88597]
[1744620212494,6.214,1637.6,1637.3,4.88594]
[1744620212870,11.85141,1637.6,1637.3,4.88594]
[1744620213064,6.070751,1637.5,1637.2,4.88635]
[1744620213282,4.88561,1637.5,1637.2,4.88635]
[1744620214192,4.88561,1637.5,1637.1,4.88665]
[1744620214499,4.88561,1637.5,1637.1,9.77318]
[1744620214866,6.9662,1637.6,1637.3,4.88609]
[1744620215066,11.85143,1637.6,1637.3,4.88609]
[1744620215398,6.9662,1637.6,1637.3,4.88609]
[1744620215592,11.85147,1637.6,1637.2,4.88637]
[1744620215800,4.88551,1637.5,1637.2,4.88637]
[1744620215953,4.88551,1637.5,1637.1,9.77328]
[1744620216153,4.88551,1637.5,1637.2,4.88636]
[1744620216395,11.85147,1637.6,1637.2,4.88622]
[1744620216792,11.85147,1637.6,1637.3,4.88601]
[1744620217010,6.9662,1637.6,1637.3,4.88601]
[1744620217163,6.9662,1637.6,1637.3,9.77196]
[1744620218265,6.9662,1637.6,1637.3,4.88595]
[1744620218465,6.214,1637.6,1637.3,1.11590625]
[1744620218663,0.8121,1637.7,1637.5,4.88549]
[1744620220099,0.8121,1637.7,1637.4,4.88579]
[1744620220277,0.8121,1637.7,1637.4,9.77142]
[1744620221502,0.8121,1637.7,1637.5,4.88549]
[1744620223001,0.8121,1637.7,1637.4,4.88563]
[1744620223204,5.69702,1637.7,1637.3,10.826951]
[1744620223402,5.69702,1637.7,1637.3,5.940791]
[1744620223603,0.8121,1637.7,1637.4,4.88566]
[1744620223905,0.8121,1637.7,1637.4,4.88565]
[1744620224215,0.8121,1637.7,1637.5,4.88537]
[1744620224804,0.8121,1637.7,1637.4,9.77134]
[1744620225699,0.8121,1637.7,1637.4,9.77134]
[1744620226287,0.8121,1637.7,1637.4,4.88565]
[1744620226931,0.8121,1637.7,1637.4,9.77129]
[1744620227208,0.8121,1637.7,1637.4,10.8539021]
[1744620227410,0.8121,1637.7,1637.5,4.88548]
[1744620229092,6.994,1637.9,1637.7,4.88489]
[1744620229426,6.209,1637.9,1637.7,4.88489]
[1744620229934,11.09352,1637.9,1637.5,5.69376]
[1744620230290,15.97802,1637.9,1637.5,5.69376]
[1744620230489,11.0935,1637.9,1637.5,10.57916]
[1744620230729,6.209,1637.9,1637.6,4.88514]
[1744620230928,6.209,1637.9,1637.6,4.88504]
[1744620231301,6.209,1637.9,1637.6,9.77012]
[1744620231502,6.209,1637.9,1637.7,4.8848]
[1744620232530,5.66903,1638.0,1637.6,9.77013]
[1744620232832,11.608496,1638.0,1637.6,4.88504]
[1744620232998,6.724306,1638.0,1637.6,9.77012]
[1744620233747,6.724306,1638.0,1637.7,4.88487]
[1744620234043,65.72380374,1638.2,1637.8,4.88435]
[1744620234204,4.88371,1638.1,1637.8,4.88435]
[1744620235235,22.98745374,1638.2,1637.8,4.88435]
[1744620235442,25.58619911,1638.2,1637.8,4.88435]
[1744620235834,20.70254911,1638.2,1637.8,4.88435]
[1744620236147,20.70254911,1638.2,1637.8,9.76883]
[1744620236358,20.70254911,1638.2,1637.8,9.76878]
[1744620236946,20.70254911,1638.2,1637.9,4.8842]
[1744620237721,0.84238374,1638.2,1637.7,0.7902]
[1744620237922,0.84238374,1638.2,1638.0,4.88399]
[1744620239652,0.06358374,1638.2,1638.0,9.76786]
[1744620239848,0.06358374,1638.2,1638.0,4.88387]
[1744620240159,0.06358374,1638.2,1637.9,5.67595]
[1744620240365,0.06358374,1638.2,1637.9,10.5602]
[1744620240567,0.87068374,1638.2,1637.9,1.05602]
[1744620240760,5.75420374,1638.2,1637.7,5.67647]
[1744620240963,5.75420374,1638.2,1637.8,4.88443]
[1744620241163,0.87068374,1638.2,1637.7,0.7917]
[1744620241474,0.06358374,1638.2,1637.9,4.88406]
[1744620241682,0.06358374,1638.2,1638.0,4.884]
[1744620242147,0.06358374,1638.2,1637.9,4.88406]
[1744620242682,0.06358374,1638.2,1638.0,4.884]
[1744620243397,0.06358374,1638.2,1638.0,9.76784]
[1744620244062,0.06358374,1638.2,1638.1,4.8837]
[1744620247218,0.06358374,1638.2,1637.9,6.652802]
[1744620247521,0.06358374,1638.2,1637.9,11.536952]
[1744620247681,0.06358374,1638.2,1638.0,10.9214252]
[1744620247882,0.06358374,1638.2,1638.1,4.8837]
[1744620249286,0.06358374,1638.2,1638.1,5.6435]
[1744620249501,0.06358374,1638.2,1638.1,5.70454231]